[Event "Titled Tuesday Blitz June 13 Early 2023"]
[White "Putri, Regita Desyari"]
[Black "Gutkin, Ilya"]
[WhiteFideId "7109083"]
[BlackFideId "16203470"]
[WhiteElo "1930"]
[BlackElo "2248"]
[Result "1-0"]
[Round "4"]
[TimeControl "180+2"]
[Date "2023.06.13"]
[WhiteClock "0:00:04"]
[BlackClock "0:00:00"]
[Board "191"]

1. d4 {[%clk 0:02:59]}  d6 {[%clk 0:02:58]} 2. c4 {[%clk 0:02:58]}  Nf6 {[%clk 0:02:58]} 3. Nf3 {[%clk 0:02:59]}  g6 {[%clk 0:02:58]} 4. g3 {[%clk 0:02:59]}  Bg7 {[%clk 0:02:58]} 5. Bg2 {[%clk 0:03:00]}  O-O {[%clk 0:02:59]} 6. O-O {[%clk 0:03:01]}  Nbd7 {[%clk 0:02:57]} 7. Nc3 {[%clk 0:03:01]}  Re8 {[%clk 0:02:57]} 8. e4 {[%clk 0:03:01]}  e5 {[%clk 0:02:57]} 9. Re1 {[%clk 0:03:00]}  c6 {[%clk 0:02:56]} 10. h3 {[%clk 0:03:00]}  Qc7 {[%clk 0:02:57]} 11. Be3 {[%clk 0:03:00]}  a5 {[%clk 0:02:56]} 12. b3 {[%clk 0:02:48]}  exd4 {[%clk 0:02:40]} 13. Nxd4 {[%clk 0:02:49]}  Nc5 {[%clk 0:02:39]} 14. Bf4 {[%clk 0:02:06]}  h6 {[%clk 0:02:31]} 15. h4 {[%clk 0:01:49]}  Nh5 {[%clk 0:02:29]} 16. Be3 {[%clk 0:01:49]}  Ne6 {[%clk 0:02:20]} 17. Nxe6 {[%clk 0:01:45]}  Bxe6 {[%clk 0:02:21]} 18. Qd2 {[%clk 0:01:43]}  Kh7 {[%clk 0:02:18]} 19. Rad1 {[%clk 0:01:42]}  Rad8 {[%clk 0:02:17]} 20. Na4 {[%clk 0:01:41]}  c5 {[%clk 0:02:14]} 21. Nc3 {[%clk 0:01:38]}  Nf6 {[%clk 0:02:09]} 22. Nb5 {[%clk 0:01:37]}  Qb8 {[%clk 0:02:04]} 23. Qxa5 {[%clk 0:01:34]}  Ng4 {[%clk 0:01:52]} 24. Bf4 {[%clk 0:01:33]}  Be5 {[%clk 0:01:46]} 25. Bxe5 {[%clk 0:01:29]}  dxe5 {[%clk 0:01:44]} 26. Nc7 {[%clk 0:01:17]}  Rxd1 {[%clk 0:01:37]} 27. Rxd1 {[%clk 0:01:16]}  Rd8 {[%clk 0:01:38]} 28. Rxd8 {[%clk 0:00:53]}  Qxd8 {[%clk 0:01:39]} 29. Qxc5 {[%clk 0:00:52]}  Qd1+ {[%clk 0:01:25]} 30. Bf1 {[%clk 0:00:52]}  Bd7 {[%clk 0:01:13]} 31. Kg2 {[%clk 0:00:19]}  Nf6 {[%clk 0:01:10]} 32. Qe7 {[%clk 0:00:15]}  Bh3+ {[%clk 0:01:07]} 33. Kh2 {[%clk 0:00:11]}  Ng4+ {[%clk 0:01:07]} 34. Kxh3 {[%clk 0:00:11]}  Qxf1+ {[%clk 0:00:47]} 35. Kxg4 {[%clk 0:00:11]}  Qe2+ {[%clk 0:00:40]} 36. f3 {[%clk 0:00:09]}  h5+ {[%clk 0:00:38]} 37. Kg5 {[%clk 0:00:09]}  Qe3+ {[%clk 0:00:35]} 38. Kf6 {[%clk 0:00:10]}  Qxf3+ {[%clk 0:00:28]} 39. Kxe5 {[%clk 0:00:10]}  Qxg3+ {[%clk 0:00:28]} 40. Kd5 {[%clk 0:00:10]}  Qf3 {[%clk 0:00:13]} 41. Ne8 {[%clk 0:00:09]}  Kg8 {[%clk 0:00:10]} 42. Nd6 {[%clk 0:00:08]}  Qf4 {[%clk 0:00:07]} 43. Kc5 {[%clk 0:00:07]}  Qf2+ {[%clk 0:00:07]} 44. Kb5 {[%clk 0:00:07]}  Kg7 {[%clk 0:00:07]} 45. Qe5+ {[%clk 0:00:06]}  Kg8 {[%clk 0:00:07]} 46. Ne8 {[%clk 0:00:06]}  Kf8 {[%clk 0:00:06]} 47. Nf6 {[%clk 0:00:06]}  Qf3 {[%clk 0:00:04]} 48. Nd5 {[%clk 0:00:05]}  Kg8 {[%clk 0:00:04]} 49. Qf6 {[%clk 0:00:05]}  Qf2 {[%clk 0:00:00]} 50. Qxf2 {[%clk 0:00:04]} 1-0


[Site "https://www.chess.com"]

[Event "Titled Tuesday Blitz June 13 Early 2023"]
[White "Goswami, Vedant"]
[Black "Vianello, Enrico"]
[WhiteFideId "5003725"]
[BlackFideId "810738"]
[WhiteElo "2011"]
[BlackElo "2170"]
[Result "1-0"]
[Round "4"]
[TimeControl "180+2"]
[Date "2023.06.13"]
[WhiteClock "0:00:47"]
[BlackClock "0:00:00"]
[Board "193"]

1. b3 {[%clk 0:03:00]}  c5 {[%clk 0:02:55]} 2. c4 {[%clk 0:02:59]}  Nf6 {[%clk 0:02:54]} 3. Nc3 {[%clk 0:02:59]}  e6 {[%clk 0:02:54]} 4. e4 {[%clk 0:02:57]}  d6 {[%clk 0:02:52]} 5. Nf3 {[%clk 0:02:56]}  Nc6 {[%clk 0:02:52]} 6. Bb2 {[%clk 0:02:54]}  Be7 {[%clk 0:02:52]} 7. d4 {[%clk 0:02:53]}  cxd4 {[%clk 0:02:52]} 8. Nxd4 {[%clk 0:02:53]}  Nxd4 {[%clk 0:02:47]} 9. Qxd4 {[%clk 0:02:53]}  a6 {[%clk 0:02:40]} 10. Be2 {[%clk 0:02:51]}  O-O {[%clk 0:02:38]} 11. Rd1 {[%clk 0:02:48]}  Qc7 {[%clk 0:02:37]} 12. O-O {[%clk 0:02:47]}  Rd8 {[%clk 0:02:34]} 13. f4 {[%clk 0:02:36]}  b6 {[%clk 0:02:27]} 14. f5 {[%clk 0:02:30]}  Bb7 {[%clk 0:02:23]} 15. g4 {[%clk 0:02:21]}  Qc5 {[%clk 0:02:22]} 16. g5 {[%clk 0:02:17]}  Nxe4 {[%clk 0:02:14]} 17. Nxe4 {[%clk 0:02:14]}  Bxe4 {[%clk 0:02:13]} 18. Qxc5 {[%clk 0:02:08]}  dxc5 {[%clk 0:02:08]} 19. f6 {[%clk 0:02:08]}  Bf8 {[%clk 0:01:59]} 20. Be5 {[%clk 0:01:54]}  h6 {[%clk 0:01:29]} 21. h4 {[%clk 0:01:49]}  hxg5 {[%clk 0:01:27]} 22. hxg5 {[%clk 0:01:48]}  gxf6 {[%clk 0:01:25]} 23. gxf6 {[%clk 0:01:46]}  Rac8 {[%clk 0:01:13]} 24. Kf2 {[%clk 0:01:26]}  Bg6 {[%clk 0:00:44]} 25. Rg1 {[%clk 0:01:18]}  Rxd1 {[%clk 0:00:40]} 26. Rxd1 {[%clk 0:01:06]}  Be4 {[%clk 0:00:22]} 27. Rg1+ {[%clk 0:01:04]}  Bg6 {[%clk 0:00:18]} 28. Bd3 {[%clk 0:01:03]}  Kh7 {[%clk 0:00:18]} 29. Rh1+ {[%clk 0:01:03]}  Kg8 {[%clk 0:00:17]} 30. Bxg6 {[%clk 0:00:52]}  fxg6 {[%clk 0:00:18]} 31. Rd1 {[%clk 0:00:52]}  b5 {[%clk 0:00:13]} 32. Rd7 {[%clk 0:00:51]}  bxc4 {[%clk 0:00:11]} 33. bxc4 {[%clk 0:00:51]}  Rc6 {[%clk 0:00:04]} 34. f7+ {[%clk 0:00:48]}  Kh7 {[%clk 0:00:00]} 35. Rd8 {[%clk 0:00:47]} 1-0


[Site "https://www.chess.com"]

[Event "Titled Tuesday Blitz June 13 Early 2023"]
[White "Haukenfrers, Dale"]
[Black "Marchesich, Giovanni"]
[WhiteFideId "2603780"]
[BlackFideId "2824790"]
[WhiteElo "2023"]
[BlackElo "2213"]
[Result "0-1"]
[Round "4"]
[TimeControl "180+2"]
[Date "2023.06.13"]
[WhiteClock "0:00:11"]
[BlackClock "0:01:26"]
[Board "197"]

1. c3 {[%clk 0:03:00]}  g6 {[%clk 0:02:58]} 2. d3 {[%clk 0:03:01]}  Bg7 {[%clk 0:02:57]} 3. h4 {[%clk 0:03:01]}  d5 {[%clk 0:02:56]} 4. h5 {[%clk 0:03:01]}  e5 {[%clk 0:02:56]} 5. Nf3 {[%clk 0:02:58]}  Nc6 {[%clk 0:02:54]} 6. h6 {[%clk 0:02:57]}  Bf8 {[%clk 0:02:50]} 7. b4 {[%clk 0:02:57]}  Bd6 {[%clk 0:02:49]} 8. a3 {[%clk 0:02:54]}  f5 {[%clk 0:02:48]} 9. e4 {[%clk 0:02:51]}  Nge7 {[%clk 0:02:45]} 10. exd5 {[%clk 0:02:46]}  Nxd5 {[%clk 0:02:43]} 11. c4 {[%clk 0:02:46]}  Nf6 {[%clk 0:02:43]} 12. c5 {[%clk 0:02:46]}  Be7 {[%clk 0:02:43]} 13. Bb2 {[%clk 0:02:45]}  O-O {[%clk 0:02:41]} 14. Qb3+ {[%clk 0:02:34]}  Kh8 {[%clk 0:02:41]} 15. Ng5 {[%clk 0:02:35]}  Qe8 {[%clk 0:02:37]} 16. Nd2 {[%clk 0:02:27]}  Ng4 {[%clk 0:02:33]} 17. Ngf3 {[%clk 0:02:19]}  Bf6 {[%clk 0:02:30]} 18. Be2 {[%clk 0:02:09]}  Be6 {[%clk 0:02:29]} 19. Qc2 {[%clk 0:01:59]}  Nd4 {[%clk 0:02:26]} 20. Nxd4 {[%clk 0:01:53]}  exd4 {[%clk 0:02:27]} 21. Bxg4 {[%clk 0:01:51]}  Bb3+ {[%clk 0:02:24]} 22. Be2 {[%clk 0:01:48]}  Bxc2 {[%clk 0:02:24]} 23. Kf1 {[%clk 0:01:45]}  Bb3 {[%clk 0:02:23]} 24. Nxb3 {[%clk 0:01:44]}  Qe5 {[%clk 0:02:22]} 25. Bf3 {[%clk 0:01:41]}  Rad8 {[%clk 0:02:21]} 26. Nd2 {[%clk 0:01:35]}  Qf4 {[%clk 0:02:21]} 27. Nc4 {[%clk 0:01:34]}  Rfe8 {[%clk 0:02:19]} 28. Bxb7 {[%clk 0:01:31]}  Bh4 {[%clk 0:02:17]} 29. Bf3 {[%clk 0:01:27]}  Bg5 {[%clk 0:02:17]} 30. Bc1 {[%clk 0:01:14]}  Qxc1+ {[%clk 0:02:10]} 31. Rxc1 {[%clk 0:01:14]}  Bxc1 {[%clk 0:02:11]} 32. Bc6 {[%clk 0:01:06]}  Re6 {[%clk 0:02:09]} 33. b5 {[%clk 0:01:04]}  g5 {[%clk 0:02:03]} 34. g3 {[%clk 0:00:59]}  g4 {[%clk 0:02:03]} 35. Rh5 {[%clk 0:00:56]}  Rf8 {[%clk 0:02:00]} 36. a4 {[%clk 0:00:47]}  Rxh6 {[%clk 0:01:58]} 37. Rxh6 {[%clk 0:00:42]}  Bxh6 {[%clk 0:01:59]} 38. a5 {[%clk 0:00:41]}  f4 {[%clk 0:01:59]} 39. b6 {[%clk 0:00:38]}  cxb6 {[%clk 0:01:57]} 40. Nxb6 {[%clk 0:00:37]}  axb6 {[%clk 0:01:56]} 41. cxb6 {[%clk 0:00:37]}  fxg3 {[%clk 0:01:49]} 42. a6 {[%clk 0:00:34]}  Rxf2+ {[%clk 0:01:47]} 43. Kg1 {[%clk 0:00:33]}  Be3 {[%clk 0:01:44]} 44. a7 {[%clk 0:00:33]}  Ra2+ {[%clk 0:01:29]} 45. Kf1 {[%clk 0:00:25]}  Bf4 {[%clk 0:01:23]} 46. a8=Q+ {[%clk 0:00:23]}  Rxa8 {[%clk 0:01:23]} 47. Bxa8 {[%clk 0:00:23]}  Kg7 {[%clk 0:01:21]} 48. Kg2 {[%clk 0:00:21]}  h5 {[%clk 0:01:20]} 49. Be4 {[%clk 0:00:19]}  Kh6 {[%clk 0:01:20]} 50. Bf5 {[%clk 0:00:18]}  Kg5 {[%clk 0:01:20]} 51. Bd7 {[%clk 0:00:19]}  h4 {[%clk 0:01:19]} 52. b7 {[%clk 0:00:17]}  h3+ {[%clk 0:01:19]} 53. Kf1 {[%clk 0:00:16]}  Bc7 {[%clk 0:01:19]} 54. Bc6 {[%clk 0:00:14]}  Kf4 {[%clk 0:01:19]} 55. Be4 {[%clk 0:00:13]}  g2+ {[%clk 0:01:19]} 56. Bxg2 {[%clk 0:00:11]}  hxg2+ {[%clk 0:01:17]} 57. Kxg2 {[%clk 0:00:11]}  g3 {[%clk 0:01:18]} 58. Kg1 {[%clk 0:00:10]}  Ke3 {[%clk 0:01:18]} 59. Kg2 {[%clk 0:00:10]}  Bb8 {[%clk 0:01:18]} 60. Kf1 {[%clk 0:00:09]}  Kxd3 {[%clk 0:01:19]} 61. Kg2 {[%clk 0:00:09]}  Kc4 {[%clk 0:01:20]} 62. Kg1 {[%clk 0:00:08]}  Kb5 {[%clk 0:01:21]} 63. Kg2 {[%clk 0:00:08]}  Kb6 {[%clk 0:01:22]} 64. Kf3 {[%clk 0:00:09]}  Kxb7 {[%clk 0:01:23]} 65. Kg2 {[%clk 0:00:09]}  Kc6 {[%clk 0:01:23]} 66. Kf3 {[%clk 0:00:10]}  Kd5 {[%clk 0:01:24]} 67. Ke2 {[%clk 0:00:10]}  Kc4 {[%clk 0:01:25]} 68. Kd1 {[%clk 0:00:10]}  Kc3 {[%clk 0:01:26]} 69. Ke2 {[%clk 0:00:11]}  d3+ {[%clk 0:01:26]} 70. Kf1 {[%clk 0:00:11]}  d2 {[%clk 0:01:26]} 71. Kg2 {[%clk 0:00:12]}  d1=Q {[%clk 0:01:26]} 72. Kh3 {[%clk 0:00:11]}  Qh1+ {[%clk 0:01:26]} 73. Kg4 {[%clk 0:00:11]}  g2 {[%clk 0:01:27]} 74. Kf5 {[%clk 0:00:11]}  g1=Q {[%clk 0:01:26]} 75. Ke6 {[%clk 0:00:11]}  Qe3+ {[%clk 0:01:26]} 76. Kd7 {[%clk 0:00:11]}  Qd5+ {[%clk 0:01:26]} 77. Kc8 {[%clk 0:00:11]}  Qe8# {[%clk 0:01:26]} 0-1


[Site "https://www.chess.com"]

[Event "Titled Tuesday Blitz June 13 Early 2023"]
[White "Stoyanov, Tsvetan"]
[Black "Tsukerman, Julia"]
[WhiteFideId "2917173"]
[BlackFideId "2621649"]
[WhiteElo "2349"]
[BlackElo "1667"]
[Result "1-0"]
[Round "4"]
[TimeControl "180+2"]
[Date "2023.06.13"]
[WhiteClock "0:00:05"]
[BlackClock "0:00:01"]
[Board "198"]

1. e4 {[%clk 0:03:00]}  c5 {[%clk 0:02:51]} 2. Nf3 {[%clk 0:03:01]}  d6 {[%clk 0:02:47]} 3. b4 {[%clk 0:03:00]}  cxb4 {[%clk 0:02:29]} 4. a3 {[%clk 0:03:00]}  bxa3 {[%clk 0:02:28]} 5. Nxa3 {[%clk 0:03:01]}  Nc6 {[%clk 0:02:26]} 6. Bc4 {[%clk 0:02:58]}  e6 {[%clk 0:02:25]} 7. O-O {[%clk 0:02:57]}  Nf6 {[%clk 0:02:21]} 8. Re1 {[%clk 0:02:57]}  Be7 {[%clk 0:02:21]} 9. d4 {[%clk 0:02:58]}  d5 {[%clk 0:02:18]} 10. exd5 {[%clk 0:02:54]}  Nxd5 {[%clk 0:02:17]} 11. Bd3 {[%clk 0:02:29]}  Ncb4 {[%clk 0:02:00]} 12. Bb5+ {[%clk 0:02:24]}  Bd7 {[%clk 0:01:57]} 13. Bxd7+ {[%clk 0:02:23]}  Qxd7 {[%clk 0:01:56]} 14. Ne5 {[%clk 0:02:24]}  Qc8 {[%clk 0:01:50]} 15. c4 {[%clk 0:02:23]}  Nf6 {[%clk 0:01:44]} 16. Qa4+ {[%clk 0:02:21]}  Nc6 {[%clk 0:01:43]} 17. d5 {[%clk 0:02:08]}  exd5 {[%clk 0:01:38]} 18. cxd5 {[%clk 0:02:08]}  Nxd5 {[%clk 0:01:37]} 19. Qb3 {[%clk 0:01:03]}  O-O {[%clk 0:01:30]} 20. Qxd5 {[%clk 0:01:02]}  Nxe5 {[%clk 0:01:20]} 21. Bb2 {[%clk 0:00:41]}  Ng6 {[%clk 0:01:11]} 22. Nb5 {[%clk 0:00:31]}  Rd8 {[%clk 0:00:55]} 23. Qb3 {[%clk 0:00:29]}  a6 {[%clk 0:00:51]} 24. Rac1 {[%clk 0:00:28]}  Qf5 {[%clk 0:00:42]} 25. Nd4 {[%clk 0:00:26]}  Qd5 {[%clk 0:00:30]} 26. Qh3 {[%clk 0:00:13]}  Bf6 {[%clk 0:00:24]} 27. Rcd1 {[%clk 0:00:13]}  Qc5 {[%clk 0:00:16]} 28. Qg4 {[%clk 0:00:12]}  Rac8 {[%clk 0:00:15]} 29. Nb3 {[%clk 0:00:10]}  Qb5 {[%clk 0:00:14]} 30. Bxf6 {[%clk 0:00:10]}  gxf6 {[%clk 0:00:13]} 31. Nd4 {[%clk 0:00:09]}  Qb6 {[%clk 0:00:12]} 32. Nf5 {[%clk 0:00:09]}  Rxd1 {[%clk 0:00:09]} 33. Rxd1 {[%clk 0:00:10]}  Qe6 {[%clk 0:00:09]} 34. h4 {[%clk 0:00:07]}  Re8 {[%clk 0:00:07]} 35. h5 {[%clk 0:00:07]}  Kh8 {[%clk 0:00:05]} 36. hxg6 {[%clk 0:00:07]}  fxg6 {[%clk 0:00:05]} 37. Ne3 {[%clk 0:00:06]}  Qxg4 {[%clk 0:00:04]} 38. Nxg4 {[%clk 0:00:07]}  b5 {[%clk 0:00:04]} 39. Nxf6 {[%clk 0:00:07]}  Ra8 {[%clk 0:00:01]} 40. Rd7 {[%clk 0:00:05]} 1-0


[Site "https://www.chess.com"]

[Event "Titled Tuesday Blitz June 13 Early 2023"]
[White "Nikologorskiy, Konstantin"]
[Black "SicilianPanzer"]
[WhiteFideId "24111708"]
[WhiteElo "2273"]
[BlackElo "2252"]
[Result "1-0"]
[Round "4"]
[TimeControl "180+2"]
[Date "2023.06.13"]
[WhiteClock "0:00:28"]
[BlackClock "0:00:00"]
[Board "199"]

1. d4 {[%clk 0:03:00]}  Nf6 {[%clk 0:02:59]} 2. c4 {[%clk 0:03:00]}  e6 {[%clk 0:02:59]} 3. Nf3 {[%clk 0:03:00]}  d5 {[%clk 0:02:58]} 4. g3 {[%clk 0:02:59]}  dxc4 {[%clk 0:02:59]} 5. Qa4+ {[%clk 0:02:55]}  Nbd7 {[%clk 0:02:58]} 6. Bg2 {[%clk 0:02:55]}  a6 {[%clk 0:02:57]} 7. Qxc4 {[%clk 0:02:54]}  b5 {[%clk 0:02:57]} 8. Qc2 {[%clk 0:02:47]}  Bb7 {[%clk 0:02:56]} 9. O-O {[%clk 0:02:47]}  Rc8 {[%clk 0:02:54]} 10. a4 {[%clk 0:02:38]}  b4 {[%clk 0:02:48]} 11. Nbd2 {[%clk 0:02:37]}  c5 {[%clk 0:02:45]} 12. Qb3 {[%clk 0:02:23]}  Bd5 {[%clk 0:02:40]} 13. Qd1 {[%clk 0:02:16]}  Qb6 {[%clk 0:02:31]} 14. a5 {[%clk 0:02:05]}  Qa7 {[%clk 0:02:29]} 15. e4 {[%clk 0:02:03]}  Nxe4 {[%clk 0:02:27]} 16. Nxe4 {[%clk 0:02:03]}  Bxe4 {[%clk 0:02:27]} 17. Re1 {[%clk 0:02:04]}  Nf6 {[%clk 0:02:21]} 18. Bg5 {[%clk 0:02:00]}  Be7 {[%clk 0:02:16]} 19. Bxf6 {[%clk 0:01:18]}  Bxf6 {[%clk 0:02:02]} 20. Rxe4 {[%clk 0:01:18]}  O-O {[%clk 0:01:47]} 21. Qd2 {[%clk 0:01:10]}  Rfd8 {[%clk 0:01:45]} 22. Rd1 {[%clk 0:01:10]}  cxd4 {[%clk 0:01:42]} 23. Qxb4 {[%clk 0:01:08]}  d3 {[%clk 0:01:38]} 24. Re3 {[%clk 0:01:05]}  Rc2 {[%clk 0:01:33]} 25. Qb6 {[%clk 0:00:56]}  Qxb6 {[%clk 0:01:10]} 26. axb6 {[%clk 0:00:57]}  d2 {[%clk 0:01:04]} 27. Bf1 {[%clk 0:00:51]}  Rxb2 {[%clk 0:00:57]} 28. Bxa6 {[%clk 0:00:47]}  Rxb6 {[%clk 0:00:56]} 29. Be2 {[%clk 0:00:41]}  Rbd6 {[%clk 0:00:48]} 30. Rb3 {[%clk 0:00:39]}  g5 {[%clk 0:00:40]} 31. Kg2 {[%clk 0:00:38]}  Kg7 {[%clk 0:00:24]} 32. h3 {[%clk 0:00:38]}  h5 {[%clk 0:00:22]} 33. g4 {[%clk 0:00:38]}  h4 {[%clk 0:00:20]} 34. Kf1 {[%clk 0:00:35]}  Kg6 {[%clk 0:00:19]} 35. Ra3 {[%clk 0:00:28]}  e5 {[%clk 0:00:13]} 36. Ra2 {[%clk 0:00:27]}  e4 {[%clk 0:00:12]} 37. Raxd2 {[%clk 0:00:26]}  exf3 {[%clk 0:00:08]} 38. Rxd6 {[%clk 0:00:26]}  fxe2+ {[%clk 0:00:07]} 39. Kxe2 {[%clk 0:00:27]}  Ra8 {[%clk 0:00:02]} 40. Kf3 {[%clk 0:00:27]}  Ra3+ {[%clk 0:00:02]} 41. R1d3 {[%clk 0:00:28]}  Ra2 {[%clk 0:00:01]} 42. Rc6 {[%clk 0:00:28]}  Kg7 {[%clk 0:00:02]} 43. Rd5 {[%clk 0:00:27]}  Ra3+ {[%clk 0:00:02]} 44. Kg2 {[%clk 0:00:27]}  Ra2 {[%clk 0:00:02]} 45. Rf5 {[%clk 0:00:27]}  Be7 {[%clk 0:00:01]} 46. Rc7 {[%clk 0:00:28]}  Re2 {[%clk 0:00:01]} 47. Kf3 {[%clk 0:00:28]}  Re1 {[%clk 0:00:01]} 48. Rxe7 {[%clk 0:00:23]}  Rxe7 {[%clk 0:00:01]} 49. Rxg5+ {[%clk 0:00:24]}  Kf8 {[%clk 0:00:01]} 50. Rh5 {[%clk 0:00:25]}  Ra7 {[%clk 0:00:01]} 51. Rxh4 {[%clk 0:00:24]}  Ra3+ {[%clk 0:00:01]} 52. Kg2 {[%clk 0:00:25]}  Kg7 {[%clk 0:00:02]} 53. Rh5 {[%clk 0:00:25]}  Kg6 {[%clk 0:00:02]} 54. Rf5 {[%clk 0:00:26]}  f6 {[%clk 0:00:02]} 55. h4 {[%clk 0:00:26]}  Ra4 {[%clk 0:00:02]} 56. f3 {[%clk 0:00:26]}  Ra2+ {[%clk 0:00:02]} 57. Kg3 {[%clk 0:00:27]}  Ra1 {[%clk 0:00:02]} 58. h5+ {[%clk 0:00:27]}  Kg7 {[%clk 0:00:02]} 59. Rd5 {[%clk 0:00:27]}  Ra7 {[%clk 0:00:00]} 60. Kf4 {[%clk 0:00:28]} 1-0


[Site "https://www.chess.com"]

[Event "Titled Tuesday Blitz June 13 Early 2023"]
[White "Fudalej, Michal"]
[Black "Venkatesh, M.R."]
[WhiteFideId "1118781"]
[BlackFideId "5005779"]
[WhiteElo "2088"]
[BlackElo "2450"]
[Result "0-1"]
[Round "4"]
[TimeControl "180+2"]
[Date "2023.06.13"]
[WhiteClock "0:00:10"]
[BlackClock "0:00:19"]
[Board "200"]

1. Nf3 {[%clk 0:02:55]}  Nf6 {[%clk 0:02:57]} 2. g3 {[%clk 0:02:56]}  g6 {[%clk 0:02:57]} 3. Bg2 {[%clk 0:02:56]}  Bg7 {[%clk 0:02:57]} 4. c4 {[%clk 0:02:57]}  O-O {[%clk 0:02:57]} 5. Nc3 {[%clk 0:02:57]}  c5 {[%clk 0:02:57]} 6. d4 {[%clk 0:02:56]}  cxd4 {[%clk 0:02:57]} 7. Nxd4 {[%clk 0:02:57]}  Nc6 {[%clk 0:02:57]} 8. c5 {[%clk 0:02:58]}  Ne8 {[%clk 0:02:45]} 9. Nxc6 {[%clk 0:02:47]}  bxc6 {[%clk 0:02:44]} 10. Bxc6 {[%clk 0:02:46]}  Rb8 {[%clk 0:02:45]} 11. Bg2 {[%clk 0:02:44]}  Qa5 {[%clk 0:02:43]} 12. O-O {[%clk 0:02:43]}  Qxc5 {[%clk 0:02:43]} 13. Rb1 {[%clk 0:02:05]}  Nc7 {[%clk 0:02:19]} 14. Be3 {[%clk 0:01:48]}  Qa5 {[%clk 0:02:17]} 15. Bd4 {[%clk 0:01:37]}  d6 {[%clk 0:02:12]} 16. Bxg7 {[%clk 0:01:35]}  Kxg7 {[%clk 0:02:10]} 17. Qd4+ {[%clk 0:01:24]}  f6 {[%clk 0:02:09]} 18. Rfd1 {[%clk 0:01:23]}  Ne6 {[%clk 0:02:08]} 19. Qe3 {[%clk 0:01:04]}  Re8 {[%clk 0:01:51]} 20. a3 {[%clk 0:00:56]}  Qc5 {[%clk 0:01:41]} 21. Qd2 {[%clk 0:00:44]}  Bb7 {[%clk 0:01:22]} 22. b4 {[%clk 0:00:44]}  Qh5 {[%clk 0:01:20]} 23. Nd5 {[%clk 0:00:41]}  Ng5 {[%clk 0:00:56]} 24. Rbc1 {[%clk 0:00:37]}  Nh3+ {[%clk 0:00:56]} 25. Kf1 {[%clk 0:00:36]}  Rbc8 {[%clk 0:00:48]} 26. Rxc8 {[%clk 0:00:30]}  Rxc8 {[%clk 0:00:45]} 27. Nxe7 {[%clk 0:00:27]}  Bxg2+ {[%clk 0:00:41]} 28. Kxg2 {[%clk 0:00:28]}  Re8 {[%clk 0:00:40]} 29. Qxd6 {[%clk 0:00:26]}  Qxe2 {[%clk 0:00:34]} 30. Kxh3 {[%clk 0:00:24]}  Rxe7 {[%clk 0:00:33]} 31. Rd4 {[%clk 0:00:17]}  Qf1+ {[%clk 0:00:32]} 32. Kg4 {[%clk 0:00:15]}  h5+ {[%clk 0:00:31]} 33. Kf3 {[%clk 0:00:12]}  Qh1+ {[%clk 0:00:28]} 34. Kf4 {[%clk 0:00:13]}  g5+ {[%clk 0:00:27]} 35. Kf5 {[%clk 0:00:11]}  Qf3+ {[%clk 0:00:27]} 36. Rf4 {[%clk 0:00:11]}  Qd3+ {[%clk 0:00:19]} 37. Qxd3 {[%clk 0:00:10]}  Re5# {[%clk 0:00:19]} 0-1


[Site "https://www.chess.com"]

[Event "Titled Tuesday Blitz June 13 Early 2023"]
[White "Mishra, Manoj"]
[Black "Ramirez Vido, Robert Yorisan"]
[WhiteFideId "5006007"]
[BlackFideId "3513823"]
[WhiteElo "1847"]
[BlackElo "2386"]
[Result "0-1"]
[Round "4"]
[TimeControl "180+2"]
[Date "2023.06.13"]
[WhiteClock "0:00:04"]
[BlackClock "0:00:08"]
[Board "205"]

1. d4 {[%clk 0:03:00]}  g6 {[%clk 0:02:59]} 2. h4 {[%clk 0:02:59]}  Nf6 {[%clk 0:02:59]} 3. Nc3 {[%clk 0:02:51]}  Bg7 {[%clk 0:02:55]} 4. e4 {[%clk 0:02:50]}  d6 {[%clk 0:02:53]} 5. Be2 {[%clk 0:02:50]}  c5 {[%clk 0:02:53]} 6. dxc5 {[%clk 0:02:47]}  Qa5 {[%clk 0:02:52]} 7. Bd2 {[%clk 0:02:30]}  Qxc5 {[%clk 0:02:51]} 8. Nf3 {[%clk 0:02:26]}  Nc6 {[%clk 0:02:36]} 9. Be3 {[%clk 0:01:53]}  Qb4 {[%clk 0:02:23]} 10. O-O {[%clk 0:01:50]}  Nxe4 {[%clk 0:01:53]} 11. Nd5 {[%clk 0:01:28]}  Qa5 {[%clk 0:01:52]} 12. c3 {[%clk 0:01:12]}  O-O {[%clk 0:01:36]} 13. b4 {[%clk 0:01:04]}  Qd8 {[%clk 0:01:36]} 14. b5 {[%clk 0:01:03]}  Ne5 {[%clk 0:01:34]} 15. Bd3 {[%clk 0:00:57]}  Nxc3 {[%clk 0:01:20]} 16. Nxc3 {[%clk 0:00:44]}  Nxf3+ {[%clk 0:01:20]} 17. Qxf3 {[%clk 0:00:43]}  Bxc3 {[%clk 0:01:21]} 18. Rac1 {[%clk 0:00:43]}  Bg7 {[%clk 0:01:15]} 19. h5 {[%clk 0:00:43]}  d5 {[%clk 0:01:06]} 20. hxg6 {[%clk 0:00:29]}  hxg6 {[%clk 0:01:03]} 21. Rfd1 {[%clk 0:00:25]}  e5 {[%clk 0:01:00]} 22. Bc5 {[%clk 0:00:17]}  Re8 {[%clk 0:00:54]} 23. Bb1 {[%clk 0:00:17]}  Be6 {[%clk 0:00:51]} 24. a4 {[%clk 0:00:14]}  b6 {[%clk 0:00:50]} 25. Ba3 {[%clk 0:00:14]}  Rc8 {[%clk 0:00:47]} 26. Rxc8 {[%clk 0:00:13]}  Qxc8 {[%clk 0:00:44]} 27. Ba2 {[%clk 0:00:13]}  d4 {[%clk 0:00:40]} 28. Bxe6 {[%clk 0:00:13]}  Qxe6 {[%clk 0:00:41]} 29. Qb7 {[%clk 0:00:13]}  Qb3 {[%clk 0:00:38]} 30. Ra1 {[%clk 0:00:11]}  e4 {[%clk 0:00:35]} 31. Qc6 {[%clk 0:00:10]}  Re6 {[%clk 0:00:26]} 32. Qc8+ {[%clk 0:00:10]}  Kh7 {[%clk 0:00:26]} 33. Bf8 {[%clk 0:00:10]}  e3 {[%clk 0:00:13]} 34. Bxg7 {[%clk 0:00:07]}  exf2+ {[%clk 0:00:12]} 35. Kh1 {[%clk 0:00:07]}  Kxg7 {[%clk 0:00:10]} 36. Rf1 {[%clk 0:00:06]}  Qg3 {[%clk 0:00:09]} 37. Qc2 {[%clk 0:00:04]}  Qh4# {[%clk 0:00:08]} 0-1


[Site "https://www.chess.com"]